[Event "43rd Guernsey Festival 2017"]
[Site "Vale"]
[Date "2017.10.17"]
[Round "3"]
[White "Ingham, H William"]
[Black "Rosen, Daniel B"]
[Result "0-1"]
[ECO "A80"]
[WhiteElo "1817"]
[BlackElo "2042"]
[Annotator "NA RC"]
[PlyCount "66"]
[EventDate "2017.??.??"]
[EventType "swiss"]
[EventCountry "GCI"]
[SourceTitle "playchess.com"]
[Source "ChessBase"]
[SourceQuality "1"]
[TimeControl "40/6000+30:2400+30"]

{[%evp 8,66,35,27,37,6,16,0,27,11,24,5,4,-25,-2,-27,18,0,18,22,29,33,34,14,16,-22,-16,-18,-11,-29,14,-189,-1,-81,-16,-223,-220,-236,-243,-272,-241,-298,-233,-320,-355,-341,-368,-885,-991,-4054,-29986,-4272,-29986,-29989,-29990,-29990,-2239,-2095,32767,32767,0]} 1. d4 {[%emt 0:00:00]} f5 {[%emt 0:00:11]} 2. Nf3 {[%emt 0:00:00]} Nf6 {[%emt 0:00:15]} 3. Bg5 {[%emt 0:00:05]} e6 {[%emt 0:01:45]} 4. Nbd2 {[%emt 0:00:07]} d5 {[%emt 0:00:38]} 5. e3 {[%emt 0:00:06] LiveBook: 80 Games} Bd6 {[%emt 0:01:09]} 6. c3 {[%emt 0:01:11] A80: Dutch Defence: Unusual White second moves} (6. c4 c6 7. Be2 O-O 8. O-O Nbd7 9. Qc2 Qe7 10. cxd5 cxd5 11. Rac1 Nb6 12. Bf4 Bxf4 13. exf4 Bd7 14. Qc5 Nc8 15. Ne5 Nd6 16. Qa3 Rfc8 {0-1 (54) Dubov,D (2629)-Mamedyarov,S (2757) Doha 2014}) 6... O-O {[%emt 0:00:14]} 7. Bd3 {[%emt 0:00:00]} Nbd7 {[%emt 0:13:51]} 8. Qe2 {[%emt 0:01:24]} c6 $146 {[%emt 0:04:23]} ({Predecessor:} 8... Qe8 9. O-O Ne4 10. Rfe1 Nxg5 11. Nxg5 Rf6 12. f4 h5 13. Rf1 Rh6 14. Ndf3 Be7 15. h4 Nf6 16. Qe1 Ng4 17. Rc1 {½-½ (17) Storme,S-Hollinger,R Bratislava 1993}) 9. h3 {[%emt 0:00:11]} Qe8 {[%emt 0:01:59]} 10. Rg1 {[%emt 0:00:51]} Ne4 {[%emt 0:03:47]} 11. g4 {[%emt 0:06:34]} e5 {[%emt 0:01:56]} 12. gxf5 {[%emt 0:01:24]} Nxd2 $1 {[%emt 0:05:24]} 13. Nxd2 {[%emt 0:00:19]} e4 {[%emt 0:00:11]} 14. Bc2 {[%emt 0:00:14]} Rxf5 {[%emt 0:01:17]} 15. O-O-O {[%emt 0:01:16]} Nf6 {[%emt 0:05:27]} 16. Qf1 {[%emt 0:13:10]} Nh5 {[%emt 0:05:20]} 17. f4 {[%emt 0:02:14]} Be6 {[%emt 0:03:55]} 18. Qf2 {[%emt 0:10:09]} Qf7 {[%emt 0:11:41]} (18... Rf7 $15) 19. Nf1 $2 {[%emt 0:08:36] [#]} (19. Rdf1 $11 {and White is okay.}) 19... b5 $2 {[%emt 0:01:32]} ({Better is} 19... Rxg5 $1 $19 {[%mdl 512]} 20. Rxg5 {[#]} (20. fxg5 Qxf2) 20... Nxf4 $1 {[%mdl 512]}) 20. Nh2 {[%emt 0:01:35] [#]} (20. Kb1 $11) 20... Kh8 {[%emt 0:06:28]} (20... Rxg5 $1 $17 {[%mdl 512]} 21. Rxg5 (21. fxg5 Qxf2) 21... Nxf4) 21. Rdf1 $2 {[%emt 0:02:27] [#]} (21. Ng4 $11 {and White stays safe.}) 21... h6 $1 {[%emt 0:02:59]} 22. h4 {[%emt 0:22:13]} hxg5 {[%emt 0:19:08]} 23. hxg5 {[%emt 0:00:30]} g6 {[%emt 0:00:10]} 24. Qh4 {[%emt 0:01:37]} Kg7 {[%emt 0:00:16]} 25. Ng4 {[%emt 0:04:52] [#]} Bxf4 $1 {[%emt 0:02:42]} 26. exf4 {[%emt 0:07:19]} Rxf4 {[%emt 0:00:10]} 27. Rf2 $2 {[%emt 0:05:57]} (27. Re1 Bxg4 28. Rxg4) 27... Bxg4 {[%emt 0:01:25]} 28. Qh2 {[%emt 0:08:05]} Rxf2 {[%emt 0:01:00]} 29. Qe5+ {[%emt 0:00:15]} Kh7 {[%emt 0:00:26]} 30. Rxg4 {[%emt 0:00:28]} Rf1+ {[%emt 0:01:44]} 31. Bd1 {[%emt 0:00:13]} Rxd1+ {[%emt 0:00:29]} (31... Qf3 $142 32. Qe7+ Ng7 33. Rh4+ Kg8 34. Qf7+ Kxf7 35. Rf4+ Qxf4+ 36. Kc2 Qh2+ 37. Kb3 Rxd1 38. a3 Qe2 39. a4 bxa4+ 40. Kxa4 Ra1+ 41. Kb4 Qc4#) 32. Kxd1 Qf3+ 33. Kc1 Qf7 $11 (33... Qxg4 $19 34. Qc7+ Ng7 35. Qh2+ Kg8) 0-1

[Event "43rd Guernsey Festival 2017"]
[Site "Vale"]
[Date "2017.10.17"]
[Round "3"]
[White "Turner, David J"]
[Black "Kearsley, Raymond J"]
[Result "0-1"]
[ECO "A05"]
[WhiteElo "1774"]
[BlackElo "1724"]
[Annotator "NA RC"]
[PlyCount "70"]
[EventDate "2017.??.??"]
[EventType "swiss"]
[EventCountry "GCI"]
[SourceTitle "playchess.com"]
[Source "ChessBase"]
[SourceQuality "1"]
[TimeControl "40/6000+30:2400+30"]

1. e4 {[%emt 0:00:00]} c5 {[%emt 0:00:06]} 2. Nf3 {[%emt 0:00:00]} g6 {[%emt 0:00:10]} 3. g3 {[%emt 0:00:23]} Bg7 {[%emt 0:00:39]} 4. Bg2 {[%emt 0:00:07]} Nc6 {[%emt 0:00:14]} 5. O-O {[%emt 0:00:19]} d6 {[%emt 0:00:57]} 6. Re1 {[%emt 0:02:00]} Nf6 {[%emt 0:00:32]} 7. d3 {[%emt 0:01:41]} O-O {[%emt 0:02:46]} 8. Nbd2 {[%emt 0:00:56]} e5 {[%emt 0:03:03]} 9. a4 Nh5 {[%emt 0:01:25]} 10. Nc4 {[%emt 0:04:17]} h6 {[%emt 0:04:05]} 11. Rb1 {[%emt 0:05:41]} Kh7 {[%emt 0:02:20]} 12. Ne3 {[%emt 0:04:42]} Be6 {[%emt 0:02:27]} 13. Nd2 {[%emt 0:09:51]} Qd7 {[%emt 0:02:29]} 14. Ndc4 {[%emt 0:01:16]} Nf6 {[%emt 0:04:26]} 15. c3 {[%emt 0:01:21]} Ne7 {[%emt 0:01:10]} 16. b4 {[%emt 0:07:08]} Rfd8 {[%emt 0:03:53]} 17. bxc5 {[%emt 0:02:56]} dxc5 {[%emt 0:00:19]} 18. Nxe5 {[%emt 0:00:47]} Qc7 {[%emt 0:00:51]} 19. d4 {[%emt 0:09:18]} cxd4 {[%emt 0:06:46]} 20. cxd4 {[%emt 0:00:15]} Rab8 {[%emt 0:02:51]} 21. Bb2 {[%emt 0:05:57]} Nc6 {[%emt 0:00:56]} 22. Nxc6 {[%emt 0:12:42]} bxc6 {[%emt 0:08:00]} 23. Qc1 {[%emt 0:09:56]} Qa5 {[%emt 0:06:13]} 24. Ra1 {[%emt 0:03:56]} Rb3 {[%emt 0:02:25]} 25. Rd1 {[%emt 0:11:18]} Rdb8 {[%emt 0:11:31]} 26. Ba3 {[%emt 0:01:39]} Rc3 {[%emt 0:00:35]} 27. Qd2 {[%emt 0:01:04]} Rbb3 {[%emt 0:02:50]} 28. Bc5 {[%emt 0:03:02]} Nd7 {[%emt 0:00:43]} 29. Rac1 Nxc5 30. dxc5 {[%emt 0:02:43]} Qxc5 {[%emt 0:00:49]} 31. Rxc3 {[%emt 0:02:13]} Rxc3 {[%emt 0:01:37]} 32. Rb1 {[%emt 0:01:19]} Bb3 {[%emt 0:02:17]} 33. Nd1 {[%emt 0:02:04]} Bxd1 {[%emt 0:00:39]} 34. Qxd1 {[%emt 0:01:24]} Rc2 {[%emt 0:00:23]} 35. Qf3 {[%emt 0:00:44]} Rxf2 {[%emt 0:07:46]} 0-1

[Event "43rd Guernsey Festival 2017"]
[Site "Vale"]
[Date "2017.10.17"]
[Round "3"]
[White "Goris-Schouwstra, Adry"]
[Black "Stuart, Brian"]
[Result "1-0"]
[ECO "D94"]
[WhiteElo "1754"]
[BlackElo "1654"]
[Annotator "NA RC"]
[PlyCount "57"]
[EventDate "2017.??.??"]
[EventType "swiss"]
[EventCountry "GCI"]
[SourceTitle "playchess.com"]
[Source "ChessBase"]
[SourceQuality "1"]
[TimeControl "40/6000+30:2400+30"]

1. d4 {[%emt 0:00:00]} Nf6 {[%emt 0:00:05]} 2. c4 {[%emt 0:00:00]} g6 {[%emt 0:00:12]} 3. Nc3 {[%emt 0:00:03]} d5 {[%emt 0:00:15]} 4. e3 {[%emt 0:02:21]} Bg7 {[%emt 0:03:21]} 5. Nf3 {[%emt 0:00:29]} O-O {[%emt 0:00:51]} 6. Be2 {[%emt 0:00:11]} dxc4 {[%emt 0:05:47]} 7. Bxc4 {[%emt 0:00:26]} c5 {[%emt 0:02:40]} 8. d5 {[%emt 0:03:44]} a6 {[%emt 0:04:00]} 9. a4 {[%emt 0:00:23]} b6 {[%emt 0:02:36]} 10. O-O {[%emt 0:00:50]} Qc7 {[%emt 0:06:46]} 11. e4 {[%emt 0:01:39]} Rd8 {[%emt 0:05:29]} 12. Qe2 {[%emt 0:02:23]} Bg4 {[%emt 0:15:05]} 13. h3 {[%emt 0:03:38]} Bxf3 {[%emt 0:00:54]} 14. Qxf3 {[%emt 0:00:25]} Ne8 {[%emt 0:00:46]} 15. Bf4 {[%emt 0:06:42]} Nd6 {[%emt 0:02:45]} 16. Be2 {[%emt 0:07:27]} Nd7 {[%emt 0:11:06]} 17. Bh2 {[%emt 0:04:11]} Be5 {[%emt 0:03:00]} 18. Bxe5 {[%emt 0:02:45]} Nxe5 {[%emt 0:00:08]} 19. Qg3 {[%emt 0:00:45]} Nd7 {[%emt 0:01:03]} 20. f4 {[%emt 0:09:17]} Ne8 {[%emt 0:04:34]} 21. e5 {[%emt 0:01:35]} Ng7 {[%emt 0:05:14]} 22. Bg4 {[%emt 0:05:47]} Rf8 {[%emt 0:04:42]} 23. Rad1 {[%emt 0:04:21]} f5 {[%emt 0:04:30]} 24. d6 {[%emt 0:02:41]} exd6 {[%emt 0:08:34]} 25. exd6 {[%emt 0:02:10]} Qd8 {[%emt 0:02:48]} 26. Bf3 {[%emt 0:00:47]} Ra7 {[%emt 0:02:04]} 27. Nd5 {[%emt 0:03:29]} Ne8 {[%emt 0:02:05]} 28. Ne7+ {[%emt 0:00:29]} Kh8 {[%emt 0:00:13]} 29. Nc6 {[%emt 0:00:11]} 1-0

[Event "43rd Guernsey Festival 2017"]
[Site "Vale"]
[Date "2017.10.17"]
[Round "3"]
[White "O`connell, Denis"]
[Black "Jongerius, Marc"]
[Result "1/2-1/2"]
[ECO "C21"]
[WhiteElo "1722"]
[BlackElo "1588"]
[Annotator "NA RC"]
[PlyCount "130"]
[EventDate "2017.??.??"]
[EventType "swiss"]
[EventCountry "GCI"]
[SourceTitle "playchess.com"]
[Source "ChessBase"]
[SourceQuality "1"]
[TimeControl "40/6000+30:2400+30"]

1. e4 {[%emt 0:01:44]} e5 {[%emt 0:00:16]} 2. d4 {[%emt 0:00:26]} exd4 {[%emt 0:00:11]} 3. c3 {[%emt 0:00:27]} d5 {[%emt 0:00:22]} 4. Qxd4 {[%emt 0:00:16]} dxe4 {[%emt 0:00:13]} 5. Qxe4+ {[%emt 0:00:12]} Be7 {[%emt 0:00:14]} 6. Bg5 {[%emt 0:03:43]} Nd7 {[%emt 0:00:37]} 7. Bxe7 {[%emt 0:01:06]} Qxe7 {[%emt 0:09:47]} 8. Nd2 {[%emt 0:03:19]} Ndf6 {[%emt 0:10:05]} 9. Qxe7+ {[%emt 0:02:18]} Nxe7 {[%emt 0:00:10]} 10. Ngf3 {[%emt 0:02:23]} Bf5 {[%emt 0:06:38]} 11. Bc4 {[%emt 0:01:48]} O-O {[%emt 0:05:44]} 12. O-O {[%emt 0:00:30]} Rad8 {[%emt 0:01:53]} 13. Rfe1 {[%emt 0:01:48]} Nc6 {[%emt 0:07:13]} 14. Bb5 {[%emt 0:03:51]} Nb8 {[%emt 0:06:27]} 15. Re7 {[%emt 0:01:46]} Nd5 {[%emt 0:04:58]} 16. Re5 {[%emt 0:01:10]} Bg6 {[%emt 0:03:25]} 17. Rae1 {[%emt 0:01:49]} f6 {[%emt 0:02:31]} 18. Rxd5 {[%emt 0:03:21]} Rxd5 {[%emt 0:01:06]} 19. Bc4 {[%emt 0:00:11]} Bf7 {[%emt 0:02:07]} 20. Bxd5 {[%emt 0:03:40]} Bxd5 {[%emt 0:01:33]} 21. c4 {[%emt 0:00:13]} Bxf3 {[%emt 0:01:41]} 22. Nxf3 {[%emt 0:01:22]} Nc6 {[%emt 0:03:55]} 23. Kf1 {[%emt 0:03:28]} Kf7 {[%emt 0:01:17]} 24. Rd1 {[%emt 0:00:43]} Rd8 {[%emt 0:09:13]} 25. Rxd8 {[%emt 0:00:39]} Nxd8 {[%emt 0:00:08]} 26. Nd4 {[%emt 0:00:12]} c6 {[%emt 0:01:52]} 27. Ke2 {[%emt 0:00:10]} Ne6 {[%emt 0:00:23]} 28. Nf3 {[%emt 0:00:53]} c5 {[%emt 0:01:41]} 29. Ke3 {[%emt 0:00:24]} Ke7 {[%emt 0:05:20]} 30. Ke4 {[%emt 0:00:28]} Kd6 {[%emt 0:02:11]} 31. g4 {[%emt 0:02:19]} g6 {[%emt 0:02:01]} 32. h4 {[%emt 0:00:16]} b6 {[%emt 0:02:51]} 33. Nd2 {[%emt 0:00:25]} Nd4 {[%emt 0:01:46]} 34. f4 {[%emt 0:00:47]} f5+ 35. gxf5 {[%emt 0:00:44]} Nxf5 {[%emt 0:03:57]} 36. Nf3 {[%emt 0:00:24]} h6 {[%emt 0:03:05]} 37. b3 {[%emt 0:01:29]} Ke6 {[%emt 0:01:30]} 38. a3 {[%emt 0:00:38]} a5 {[%emt 0:00:56]} 39. a4 {[%emt 0:00:58]} Ng3+ {[%emt 0:00:37]} 40. Ke3 {[%emt 0:01:59]} Kf5 {[%emt 0:41:45]} 41. Ne5 {[%emt 0:41:04]} Nh5 {[%emt 0:07:25]} 42. Nd3 {[%emt 0:05:52]} Kg4 {[%emt 0:00:00]} 43. Ne5+ {[%emt 0:00:00]} Kf5 {[%emt 0:00:00]} 44. Nf7 {[%emt 0:00:00]} Kg4 {[%emt 0:00:00]} 45. Nxh6+ {[%emt 0:00:00]} Kxh4 {[%emt 0:00:00]} 46. Ke4 {[%emt 0:00:00]} Ng3+ {[%emt 0:00:00]} 47. Ke5 {[%emt 0:00:00]} Ne2 {[%emt 0:00:00]} 48. Nf7 {[%emt 0:00:00]} Kg4 {[%emt 0:00:00]} 49. f5 {[%emt 0:00:00]} gxf5 {[%emt 0:00:00]} 50. Nh6+ {[%emt 0:00:00]} Kf3 {[%emt 0:00:00]} 51. Nxf5 {[%emt 0:00:00]} Nc1 {[%emt 0:00:00]} 52. Kd5 {[%emt 0:00:00]} Nxb3 {[%emt 0:00:00]} 53. Nd6 {[%emt 0:00:00]} Ke3 {[%emt 0:00:00]} 54. Nc8 {[%emt 0:00:00]} Kd3 {[%emt 0:00:00]} 55. Nxb6 {[%emt 0:00:00]} Kc3 {[%emt 0:00:00]} 56. Kc6 {[%emt 0:00:00]} Kb4 {[%emt 0:00:00]} 57. Kd5 {[%emt 0:00:00]} Nd2 {[%emt 0:00:00]} 58. Nd7 {[%emt 0:00:00]} Nxc4 {[%emt 0:00:00]} 59. Nxc5 {[%emt 0:00:00]} Nb6+ {[%emt 0:00:00]} 60. Kd4 {[%emt 0:00:28]} Nxa4 {[%emt 0:00:00]} 61. Nxa4 {[%emt 0:00:07]} Kxa4 {[%emt 0:00:00]} 62. Kc4 {[%emt 0:00:27]} Ka3 {[%emt 0:00:00]} 63. Kc3 {[%emt 0:00:07]} a4 {[%emt 0:00:00]} 64. Kc2 {[%emt 0:00:27]} Ka2 {[%emt 0:00:00]} 65. Kc1 {[%emt 0:00:19]} Ka3 1/2-1/2

[Event "43rd Guernsey Festival 2017"]
[Site "Vale"]
[Date "2017.10.17"]
[Round "3"]
[White "Finch, Russell"]
[Black "Baart, Edwin"]
[Result "1/2-1/2"]
[ECO "D02"]
[WhiteElo "1689"]
[BlackElo "1816"]
[Annotator "NA RC"]
[PlyCount "34"]
[EventDate "2017.??.??"]
[EventType "swiss"]
[EventCountry "GCI"]
[SourceTitle "playchess.com"]
[Source "ChessBase"]
[SourceQuality "1"]
[TimeControl "40/6000+30:2400+30"]

{[%evp 9,34,9,9,11,22,-3,28,-15,33,29,50,31,33,21,30,0,4,-11,-2,-12,13,0,44,0,0,0,47]} 1. d4 {[%emt 0:00:00]} Nf6 {[%emt 0:00:20]} 2. Nf3 {[%emt 0:00:00]} d5 {[%emt 0:00:09]} 3. Bf4 {[%emt 0:00:16]} c5 {[%emt 0:00:42]} 4. e3 {[%emt 0:00:14]} Bg4 {[%emt 0:00:11]} 5. Be2 {[%emt 0:01:48]} e6 {[%emt 0:00:39]} 6. Nbd2 {[%emt 0:00:49]} Nbd7 {[%emt 0:01:24]} 7. c3 {[%emt 0:00:34]} Qb6 {[%emt 0:00:30]} 8. Qb3 {[%emt 0:03:16]} Be7 {[%emt 0:03:33]} (8... c4 $5 {[%cal Rc4b3]} 9. Qxb6 axb6 $11) 9. Qxb6 {[%emt 0:01:47]} Nxb6 {[%emt 0:02:11]} 10. h3 {[%emt 0:04:09]} Bxf3 {[%emt 0:00:32]} 11. Nxf3 {[%emt 0:01:46]} O-O {[%emt 0:00:33]} 12. O-O {[%emt 0:01:07]} Rac8 {[%emt 0:00:46]} 13. Rfc1 {[%emt 0:04:21]} Ne4 {[%emt 0:05:14]} 14. Bd3 {[%emt 0:05:50]} g5 {[%emt 0:09:00]} 15. Bh2 {[%emt 0:06:14]} Nd7 {[%emt 0:04:32]} 16. Bb5 {[%emt 0:08:36]} Nb6 {[%emt 0:08:39]} 17. Bd3 {[%emt 0:04:57]} Nd7 $14 {[%emt 0:01:53]} 1/2-1/2

[Event "43rd Guernsey Festival 2017"]
[Site "Vale"]
[Date "2017.10.17"]
[Round "3"]
[White "Ruigrok, Jacques"]
[Black "Kershaw, Graham"]
[Result "1/2-1/2"]
[ECO "C02"]
[WhiteElo "1679"]
[BlackElo "1712"]
[Annotator "NA RC"]
[PlyCount "37"]
[EventDate "2017.??.??"]
[EventType "swiss"]
[EventCountry "GCI"]
[SourceTitle "playchess.com"]
[Source "ChessBase"]
[SourceQuality "1"]
[TimeControl "40/6000+30:2400+30"]

1. e4 e6 2. d4 d5 3. e5 c5 4. c3 Nc6 5. Nf3 Qb6 6. Bd3 cxd4 7. cxd4 Bd7 8. Nc3 Nxd4 9. Nxd4 Qxd4 10. Qe2 Qb6 11. O-O Ne7 12. Kh1 d4 13. Ne4 Nd5 14. a3 Be7 15. Ng5 Qd8 16. Ne4 a5 17. Qg4 Kf8 18. Ng5 h6 19. Nf3 1/2-1/2

[Event "43rd Guernsey Festival 2017"]
[Site "Vale"]
[Date "2017.10.18"]
[Round "4"]
[White "Hamperl, Fred"]
[Black "Munshi, Aditya"]
[Result "1/2-1/2"]
[ECO "B10"]
[WhiteElo "2062"]
[BlackElo "1986"]
[Annotator "NA RC"]
[PlyCount "58"]
[EventDate "2017.??.??"]
[EventType "swiss"]
[EventCountry "GCI"]
[SourceTitle "playchess.com"]
[Source "ChessBase"]
[SourceQuality "1"]
[TimeControl "40/6000+30:2400+30"]

{[%evp 8,58,50,33,15,30,45,0,4,-12,-15,-11,-12,-20,-18,-18,-12,-21,0,-22,-11,-9,0,0,-4,-10,0,-22,-10,-40,4,-25,29,20,26,37,31,11,32767,18,32767,21,12,26,0,14,0,-22,-12,-19,0,0,0]} 1. e4 {[%emt 0:00:00]} c6 {[%emt 0:00:24]} 2. Nc3 {[%emt 0:01:13]} d5 {[%emt 0:00:27]} 3. Nf3 {[%emt 0:00:27]} Nf6 {[%emt 0:00:26]} 4. Qe2 {[%emt 0:02:30]} dxe4 {[%emt 0:01:11]} 5. Nxe4 {[%emt 0:00:21]} Nxe4 {[%emt 0:00:16] LiveBook: 61 Games} 6. Qxe4 {[%emt 0:00:04]} Qd5 {[%emt 0:00:06] B11: Caro-Kann: Two Knights Variation} 7. Qxd5 {[%emt 0:08:23]} (7. Qh4 Qe6+ 8. Be2 Qg4 9. Qg3 Qxg3 10. hxg3 g6 11. d4 Bg7 12. Bh6 Bf6 13. Ne5 Be6 14. O-O-O {½-½ (46) Bacrot,E (2708)-Topalov,V (2749) Paris 2017}) 7... cxd5 {[%emt 0:00:30]} 8. Bb5+ {[%emt 0:00:39]} Bd7 {[%emt 0:00:08]} 9. Bxd7+ {[%emt 0:01:06]} Nxd7 {[%emt 0:00:09]} 10. d4 $146 {[%emt 0:00:14]} Rc8 {[%emt 0:09:43]} 11. c3 {[%emt 0:01:01]} e6 {[%emt 0:01:43]} 12. Bf4 {[%emt 0:09:44]} Be7 {[%emt 0:01:27]} 13. O-O {[%emt 0:00:55]} O-O {[%emt 0:00:20]} 14. a4 {[%emt 0:04:43]} Rc6 {[%emt 0:23:46]} 15. Rfc1 {[%emt 0:10:55]} Rfc8 {[%emt 0:06:57]} 16. Kf1 {[%emt 0:01:53]} f6 {[%emt 0:04:05]} 17. g4 {[%emt 0:09:26]} g5 {[%emt 0:13:17]} 18. Bg3 {[%emt 0:04:01]} Kg7 {[%emt 0:10:26]} 19. Re1 {[%emt 0:06:54]} Nf8 {[%emt 0:01:50]} ({Better is} 19... Kf7) 20. h4 {[%emt 0:02:25]} h6 {[%emt 0:02:07]} 21. Ke2 {[%emt 0:06:11]} Rb6 {[%emt 0:03:08]} 22. Reb1 {[%emt 0:02:47]} Ng6 {[%emt 0:01:46]} 23. h5 {[%emt 0:01:11]} Nh8 {[%emt 0:02:52]} 24. Kd3 {[%emt 0:04:28]} Nf7 {[%emt 0:00:28]} 25. Re1 {[%emt 0:03:24]} Nd8 {[%emt 0:12:23]} 26. Re2 {[%emt 0:00:35]} Kf7 {[%emt 0:00:32]} 27. Rae1 {[%emt 0:04:30]} Ra6 {[%emt 0:01:57]} 28. b3 {[%emt 0:03:38]} Rb6 {[%emt 0:02:03]} (28... Rac6 $5 {[%cal Rc6c3]} 29. Rc2 b6 $11) 29. Rb1 {[%emt 0:05:42]} a5 $11 {[%emt 0:02:02] Ke4} 1/2-1/2

[Event "43rd Guernsey Festival 2017"]
[Site "Vale"]
[Date "2017.10.18"]
[Round "4"]
[White "Thurlow, Kevin J"]
[Black "Curtis, John E"]
[Result "1/2-1/2"]
[ECO "A21"]
[WhiteElo "2009"]
[BlackElo "2093"]
[Annotator "NA RC"]
[PlyCount "36"]
[EventDate "2017.??.??"]
[EventType "swiss"]
[EventCountry "GCI"]
[SourceTitle "playchess.com"]
[Source "ChessBase"]
[SourceQuality "1"]
[TimeControl "40/6000+30:2400+30"]

{[%evp 8,36,19,3,15,32767,19,-3,0,-10,-3,-29,-32,-45,-34,-34,-30,-23,0,-17,0,-12,19,0,1,-13,-8,-30,-23,0,0]} 1. c4 {[%emt 0:00:00]} e5 {[%emt 0:00:11]} 2. Nc3 {[%emt 0:00:00]} d6 {[%emt 0:00:15]} 3. e3 {[%emt 0:00:28]} f5 {[%emt 0:00:55]} 4. g3 {[%emt 0:00:12]} Nf6 {[%emt 0:00:19]} 5. Bg2 {[%emt 0:00:10]} Be7 {[%emt 0:00:08]} 6. Nge2 {[%emt 0:00:17]} O-O {[%emt 0:00:10]} 7. d4 {[%emt 0:00:23]} Na6 {[%emt 0:02:06] A21: English Opening: 1...e5 2 Nc3} 8. a3 $146 {[%emt 0:10:54]} ({Predecessor:} 8. O-O c6 9. Rb1 Nc7 10. b4 Be6 11. b5 Bxc4 12. bxc6 b5 13. a4 a6 14. d5 Rb8 15. Rb4 {1-0 (60) Kovalyov,A (2606)-Arencibia Rodriguez,W (2526) Montreal 2013}) 8... c6 {[%emt 0:00:45] LiveBook: 6 Games} 9. b4 {[%emt 0:01:15]} Nc7 {[%emt 0:02:35]} 10. b5 {[%emt 0:15:35]} e4 {[%emt 0:11:03]} 11. Qb3 {[%emt 0:10:15]} d5 {[%emt 0:08:27]} 12. cxd5 {[%emt 0:05:07]} cxd5 {[%emt 0:02:03]} 13. h4 {[%emt 0:00:18]} Ne6 {[%emt 0:03:44]} 14. Bh3 {[%emt 0:04:45]} g6 {[%emt 0:01:36]} 15. a4 {[%emt 0:09:24]} a5 {[%emt 0:14:34]} 16. Ba3 {[%emt 0:03:37]} (16. bxa6 $5 b6 17. a7 $15) 16... Bxa3 {[%emt 0:02:17]} 17. Rxa3 {[%emt 0:00:13]} b6 {[%emt 0:02:34]} 18. O-O {[%emt 0:02:26]} Qd6 $11 {[%emt 0:04:17]} 1/2-1/2

[Event "43rd Guernsey Festival 2017"]
[Site "Vale"]
[Date "2017.10.18"]
[Round "4"]
[White "Hewson, Brian W R"]
[Black "Purdon, Colin"]
[Result "1/2-1/2"]
[ECO "D12"]
[WhiteElo "1995"]
[BlackElo "2047"]
[Annotator "NA RC"]
[PlyCount "50"]
[EventDate "2017.??.??"]
[EventType "swiss"]
[EventCountry "GCI"]
[SourceTitle "playchess.com"]
[Source "ChessBase"]
[SourceQuality "1"]
[TimeControl "40/6000+30:2400+30"]

{[%evp 8,50,27,15,32767,32767,32767,32767,28,17,30,14,7,14,16,47,53,0,0,-44,-29,-68,32767,-66,32767,-43,32767,32767,-16,32767,32767,32767,-52,32767,-44,-68,32767,32767,32767,32767,0,-6,-8,32767,0]} 1. d4 {[%emt 0:00:00]} d5 {[%emt 0:00:08]} 2. Nf3 {[%emt 0:00:00]} Nf6 {[%emt 0:00:15]} 3. c4 {[%emt 0:00:00]} c6 {[%emt 0:00:11]} 4. e3 {[%emt 0:03:35]} Bf5 {[%emt 0:00:48]} 5. Nc3 {[%emt 0:01:46]} e6 {[%emt 0:04:24]} 6. Nh4 Be4 7. f3 {[%emt 0:13:02]} Bg6 {[%emt 0:01:03] D12: Slav Defence: 3 Nf3 Nf6 4 e3 Bf5} 8. Nxg6 {[%emt 0:01:23]} (8. Qb3 Qc7 9. Bd2 a6 10. Rc1 dxc4 11. Bxc4 Nbd7 12. a4 Be7 13. g3 Bh5 14. O-O O-O 15. Ng2 Rad8 16. Nf4 Kh8 {½-½ (34) So,W (2822)-Caruana,F (2817) chess.com INT 2017}) 8... hxg6 {[%emt 0:00:11]} 9. Qb3 {[%emt 0:00:08]} Qc7 {[%emt 0:02:37]} 10. Bd2 {[%emt 0:05:12] LiveBook: 28 Partien} Nbd7 {[%emt 0:01:12]} 11. cxd5 {[%emt 0:02:05]} exd5 {[%emt 0:01:52]} 12. Rc1 $146 {[%emt 0:09:16]} ({Predecessor:} 12. O-O-O O-O-O 13. h3 Kb8 14. Kb1 Nb6 15. Bd3 {1-0 (51) Socko,B (2631)-Grigoriants,S (2589) Khanty-Mansiysk 2012}) 12... Nb6 {[%emt 0:16:24]} 13. f4 {[%emt 0:11:35]} a5 {[%emt 0:19:38]} 14. a4 {[%emt 0:00:08]} Bb4 {[%emt 0:21:57]} 15. Bd3 {[%emt 0:00:58]} O-O {[%emt 0:07:18]} 16. O-O {[%emt 0:04:30]} Qe7 {[%emt 0:02:03]} 17. Rf3 {[%emt 0:10:16]} Nc8 {[%emt 0:00:38]} 18. Nb1 {[%emt 0:00:05]} Bxd2 {[%emt 0:01:34]} 19. Nxd2 {[%emt 0:04:17]} Nd6 {[%emt 0:02:04]} 20. h3 {[%emt 0:00:47]} Rfe8 {[%emt 0:03:50]} 21. Qc2 {[%emt 0:11:42]} Nde4 {[%emt 0:08:34]} 22. Bxe4 {[%emt 0:01:45]} Nxe4 {[%emt 0:00:36]} 23. Nxe4 {[%emt 0:00:10]} Qxe4 $11 {[%emt 0:00:18]} 24. Qxe4 {[%emt 0:01:26]} Rxe4 {[%emt 0:00:10]} 25. Rc3 {[%emt 0:00:27]} Rae8 {[%emt 0:01:34]} 1/2-1/2